Workbook

Sheet Expenses
F4: Index | G4: Category | H4: Amount | I4: Allowable | J4: Proposed
F5: 35 | G5: Food, Clothing and Misc. | H5: =SUMIF(Table1[Category],Table2[[#This Row],[Category]],Table1[Amount]) -> 400 | I5: 808 | J5: 808
B6: Expense | C6: Amount | D6: Category | F6: 36 | G6: Housing and Utilities | H6: =SUMIF(Table1[Category],Table2[[#This Row],[Category]],Table1[Amount]) -> 1924 | I6: 1227 | J6: 1227
B7: Food | C7: 400 | D7: Food, Clothing and Misc. | F7: 37 | G7: Vehicle Ownership Costs | H7: =SUMIF(Table1[Category],Table2[[#This Row],[Category]],Table1[Amount]) -> 1081 | I7: 619 | J7: 619
B8: Electric | C8: 380 | D8: Housing and Utilities | F8: 38 | G8: Vehicle Operating Costs | H8: =SUMIF(Table1[Category],Table2[[#This Row],[Category]],Table1[Amount]) -> 400 | I8: 239 | J8: 239
B9: Oil/Gas | C9: 40 | D9: Housing and Utilities | F9: 39 | G9: Public Transportation | H9: =SUMIF(Table1[Category],Table2[[#This Row],[Category]],Table1[Amount]) -> 0
B10: Water | C10: 100 | D10: Housing and Utilities | F10: 40 | G10: Health Insurance | H10: =SUMIF(Table1[Category],Table2[[#This Row],[Category]],Table1[Amount]) -> 400 | J10: 400
B11: Tel/Cell | C11: 330 | D11: Housing and Utilities | F11: 41 | G11: Out of Pocket Health Care Costs | H11: =SUMIF(Table1[Category],Table2[[#This Row],[Category]],Table1[Amount]) -> 166 | I11: 83 | J11: 83
B12: Internet | C12: 65 | D12: Housing and Utilities | F12: 42 | G12: Court Ordered Payment | H12: =SUMIF(Table1[Category],Table2[[#This Row],[Category]],Table1[Amount]) -> 0
B13: Veh Pmt Jeep | C13: 307 | D13: Vehicle Ownership Costs | F13: 43 | G13: Child/Dependent Care | H13: =SUMIF(Table1[Category],Table2[[#This Row],[Category]],Table1[Amount]) -> 0
B14: Veh Pmt Crosstrek | C14: 774 | D14: Vehicle Ownership Costs | F14: 44 | G14: Life Insurance | H14: =SUMIF(Table1[Category],Table2[[#This Row],[Category]],Table1[Amount]) -> 0
B15: Health Ins | C15: 400 | D15: Health Insurance | F15: 45 | G15: Current year taxes (Income/FICA) | H15: =SUMIF(Table1[Category],Table2[[#This Row],[Category]],Table1[Amount]) -> 1157 | J15: 1157
B16: OOP | C16: 166 | D16: Out of Pocket Health Care Costs | F16: 46 | G16: Secured Debts (Attach list) | H16: =SUMIF(Table1[Category],Table2[[#This Row],[Category]],Table1[Amount]) -> 0
B17: Tax Defense | C17: 308 | D17: Other Expenses (Attach list) | F17: 47 | G17: Delinquent State or Local Tax | H17: =SUMIF(Table1[Category],Table2[[#This Row],[Category]],Table1[Amount]) -> 0
B18: ES Pmts | C18: 1157 | D18: Current year taxes (Income/FICA) | F18: 48 | G18: Other Expenses (Attach list) | H18: =SUMIF(Table1[Category],Table2[[#This Row],[Category]],Table1[Amount]) -> 308 | J18: 308
B19: Mortgage | C19: 1009 | D19: Housing and Utilities | F19: 49 | G19: Total Living Expenses (add lines 35-48) | H19: =SUMIF(Table1[Category],Table2[[#This Row],[Category]],Table1[Amount]) -> 0
B20: Veh Gas/Ins | C20: 400 | D20: Vehicle Operating Costs | F20: 50 | G20: Net difference (Line 34 minus 49) | H20: =SUMIF(Table1[Category],Table2[[#This Row],[Category]],Table1[Amount]) -> 0
G22: Total | H22: =SUM(H5:H20) -> 5836 | J22: =SUM(J5:J20) -> 4841

Sheet Income
A1: From Bank Statements | K1: From pay stubs
A22: From Tax Returns
A23: 2023
A24: Sch C Cons | B24: 100648 | C24: Ttl Exp | D24: 41688 | E24: Net | F24: =B24-D24 -> 58960
A25: Car Exp | B25: 10099
A26: Ins/not health | B26: 165
A27: Legal/Prof | B27: 535
A28: Other Exp | B28: 17206
A29: Utilities | B29: 7418
A32: Ttl Exp | B32: =SUM(B25:B29) -> 35423
A35: Sch C ITS | B35: 129347 | C35: Ttl Exp | D35: 119872 | E35: Net | F35: =B35-D35 -> 9475
A36: Legal/Prof | B36: 6196
A37: Other | B37: 18729
F39: =SUM(F24:F38) -> 68435 | G39: =F39/12 -> 5702.916667
